Cogmind - Beta 16.1 @@@ ROGUE MODE // 2026.03.14 @ 14:14:36 Player: TheSkyeDoctor Result: Destroyed by Y-45 Defender with Beam Rifle Performance ------------- Evolutions (2) 1000 Regions Visited (4) 800 Robots Destroyed (62) 310 Value Destroyed (1506) 1506 Prototype IDs (3) 60 Alien Tech Used (0) 0 Bonus (0) 0 TOTAL SCORE: 3676 Bonus ------- None Cogmind --------- Core Integrity 0/550 Matter 164/300 Energy 160/160 System Corruption 0% Temperature Cool (93) Movement Hovering (106) Ox1 Location -8/Storage Parts ------- > --- POWER (1) -------- Light Nuclear Core > --- PROPULSION (2) --- Aerolev Unit Aerolev Unit > --- UTILITY (6) ------ Medium Storage Unit Improved Signal Interpreter Targeting Computer Targeting Computer Light Armor Plating Hacking Suite > --- WEAPON (2) ------- Beam Cannon > --- INVENTORY (10) --- Armored Wheel Aerolev Unit Aerolev Unit Improved Signal Interpreter Hacking Suite Improved Datajack Peak State ------------ > --- POWER ------------ Light Nuclear Core > --- PROPULSION ------- Aerolev Unit Aerolev Unit > --- UTILITY ---------- Medium Storage Unit Improved Signal Interpreter Targeting Computer Targeting Computer Light Armor Plating Hacking Suite > --- WEAPON ----------- Ion Cannon Assault Cannon > --- INVENTORY -------- Armored Wheel Aerolev Unit Aerolev Unit Aerolev Unit Aerolev Unit Improved Signal Interpreter Hacking Suite Beam Cannon Heavy Assault Rifle Improved Datajack [Rating: 30] Favorites ----------- Power Ion Engine Engine Ion Engine Power Core Light Nuclear Core Propulsion Light Treads Treads Light Treads Wheel Armored Wheel Hover Unit Aerolev Unit Utility Medium Storage Unit Device Seismic Detector Storage Medium Storage Unit Processor Targeting Computer Hackware Hacking Suite Protection Medium Armor Plating Weapon Assault Rifle Energy Gun Spread Laser Energy Cannon Beam Cannon Ballistic Gun Assault Rifle Ballistic Cannon Assault Cannon Launcher Grenade Launcher Build | -11 -10 -9 -8 -8 ------- Run | Yrd Mat Mat Mat Sto Slots Evolved 4 | . . 2 2 . Power . | . . . . . Propulsion . | . . . . . Utility 4 | . . 2 2 . Weapon . | . . . . . Parts Attached 57 | 7 1 21 20 8 Power 8 | 1 . 2 4 1 Engine 4 | 1 . 2 1 . Core 4 | . . . 3 1 Reactor . | . . . . . Propulsion 16 | 2 . 5 5 4 Treads 10 | 2 . 3 5 . Leg . | . . . . . Wheel 2 | . . 2 . . Hover 4 | . . . . 4 Flight . | . . . . . Utility 18 | 2 . 9 6 1 Device 7 | 1 . 5 1 . Storage 3 | 1 . 1 1 . Processor 3 | . . . 3 . Hackware 2 | . . 1 1 . Protection 3 | . . 2 . 1 Artifact . | . . . . . Weapon 15 | 2 1 5 5 2 Energy Gun 4 | . . 2 2 . Energy Cannon 4 | . 1 1 1 1 Ballistic Gun 5 | 2 . 1 1 1 Ballistic Cannon 1 | . . . 1 . Launcher 1 | . . 1 . . Special Weapon . | . . . . . Impact Weapon . | . . . . . Slashing Weapon . | . . . . . Piercing Weapon . | . . . . . Special Melee Weapon . | . . . . . Unidentified Prototypes 3 | . . 1 1 1 Parts Lost 36 | . . 17 11 8 Power 6 | . . 3 2 1 Propulsion 12 | . . 5 4 3 Utility 9 | . . 5 3 1 Weapon 9 | . . 4 2 3 Highest Loss Streak 10 | . . 10 5 6 To Critical Strikes . | . . . . . Average Backups 7 | 2 7 7 6 8 Power . | . 1 . . . Propulsion 2 | 1 2 2 3 3 Utility 1 | . 2 1 . 2 Weapon . | . 1 . . 1 Tool/Special . | . . . . . Unused Backups 14 | . 5 . 1 8 Power . | . . . . . Propulsion 5 | . 1 . 1 3 Utility 6 | . 3 . . 3 Weapon 1 | . 1 . . . Tool/Special 2 | . . . . 2 Average Slot Usage (%) 92 | . 100 88 92 95 Engine 5 | . 14 9 . . Core 3 | . . . 7 7 Treads 17 | . 28 18 14 8 Wheel 1 | . . 1 2 . Hover 1 | . . . . 8 Device 14 | . 14 19 14 3 Storage 10 | . 14 11 9 9 Processor 9 | . . . 15 27 Hackware 5 | . . 1 11 9 Protection 3 | . . 7 . 5 Energy Gun 3 | . . 1 11 . Energy Cannon 7 | . 13 8 2 8 Ballistic Gun 5 | . 14 7 1 . Ballistic Cannon 1 | . . . . 7 Peak Build Rating 30 | 7 8 16 28 30 Average Rating 16 | 5 7 12 23 25 On Entrance 10 | . 7 8 12 24 Avg Prop Armor Cover (%) . | . . . . . Naked Turns . | . . . . . Heaviest Build 31 | 14 16 31 31 31 Greatest Support 42 | 40 40 40 42 40 Greatest Overweight (x) 4 | 1 . 4 2 3 Average Overweight (x) . | . . . . . Largest Inventory Capacity 10 | 8 8 10 10 10 Average Capacity 9 | 7 8 9 10 10 Most Carried 10 | 5 8 10 10 10 Average Carried 7 | 2 7 7 6 8 Final Capacity 10 | 8 8 10 10 10 Final Carried 8 | 5 8 4 7 6 Class Distribution -------------------- 50% | Mutant 48% | Scavenger-Mutant Dominant Class ---------------- Mutant | -10/Materials Mutant | -9/Materials Scavenger-Mutant | -8/Materials Scavenger-Mutant | -8/Storage Resources | -11 -10 -9 -8 -8 ----------- Run | Yrd Mat Mat Mat Sto Matter Collected 1075 | 294 44 314 264 159 Remotely . | . . . . . Salvage Created 1824 | 113 44 870 446 351 Parts 130 | 10 4 69 30 17 Haulers Intercepted 3 | . . 3 . . Recyclers Shooed 2 | . . 1 1 . Parts Field Recycled . | . . . . . Retrieved Matter . | . . . . . Parts Self-Destructed . | . . . . . Prevented . | . . . . . Parts Restored . | . . . . . Kills | -11 -10 -9 -8 -8 ------- Run | Yrd Mat Mat Mat Sto Combat Hostiles Destroyed 41 | . 3 21 9 8 Guns 10 | . 1 2 5 2 Cannons 26 | . 2 14 4 6 AOE 5 | . . 5 . . Classes Destroyed 12 | 2 1 7 2 . Worker 5 | . . 3 1 1 Builder 3 | . . 2 1 . Tunneler 3 | 3 . . . . Hauler 3 | . . 3 . . Recycler 2 | 1 . 1 . . Mechanic 1 | . . . 1 . Operator 1 | . . 1 . . Watcher 3 | . . 1 2 . Swarmer 13 | . 3 8 2 . Grunt 18 | . . 11 2 5 Sentry 8 | . . 2 3 3 Hunter 2 | . . . 2 . Best Kill Streak 6 | 4 3 6 2 3 Combat Bots Only 3 | . 3 3 2 3 Max Kills in Single Turn 3 | 2 1 3 1 1 Gunslinging . | . . . . . Exploded 1 | . . 1 . . Melee . | . . . . . Uniques/NPCs Destroyed . | . . . . . Combat | -11 -10 -9 -8 -8 -------- Run | Yrd Mat Mat Mat Sto Hostile Shots Fired 604 | . 15 252 260 77 Missed 141 | . 3 58 65 15 Hits 463 | . 12 194 195 62 Projectile 463 | . 12 194 195 62 Critical Strikes 14 | . . 4 4 6 Damage Taken 4514 | . 98 1943 1517 956 Core 863 | . 24 288 295 256 Absorbed by Shields 839 | . . 182 641 16 Core Remaining (%) 72 | 100 90 28 . . Volleys Fired 192 | 6 6 91 46 43 Largest 2 | 2 2 2 2 2 Hottest 123 | 40 80 91 123 97 Shots Fired 294 | 12 12 141 62 67 Gun 145 | 12 6 65 47 15 Cannon 139 | . 6 66 15 52 Launcher 10 | . . 10 . . Special . | . . . . . Kinetic 117 | 12 6 46 14 39 Thermal 162 | . 6 85 43 28 Explosive 10 | . . 10 . . Electromagnetic 5 | . . . 5 . Robot Hit Streak 17 | 2 5 17 10 17 Robot Miss Streak 10 | 2 6 10 9 4 Penetration Max . | . . . . . Secondary Targets . | . . . . . Shots Hit Robots 200 | 5 4 90 50 51 Core Hits 106 | 5 3 44 38 16 Critical Kills . | . . . . . Critical Parts Destroyed . | . . . . . Critical Strikes 1 | . . . . 1 Blast 1 | . . . . 1 Melee Attacks . | . . . . . Impact . | . . . . . Slashing . | . . . . . Piercing . | . . . . . Sneak Attacks . | . . . . . Combat Hostiles . | . . . . . Follow-up Attacks . | . . . . . Damage Inflicted 4025 | 63 63 1925 803 1171 Guns 1342 | 63 10 463 573 233 Cannons 2157 | . 53 940 226 938 Explosions 522 | . . 522 . . Melee . | . . . . . Ramming 4 | . . . 4 . Kinetic 1178 | 63 10 282 120 703 Thermal 2260 | . 53 1121 618 468 Explosive 522 | . . 522 . . Electromagnetic 61 | . . . 61 . Impact . | . . . . . Slashing . | . . . . . Piercing . | . . . . . Highest Corruption 1 | . 1 . . . Average Corruption 1 | . 1 . . . Corruption Purged . | . . . . . Corruption Blocked . | . . . . . Overload Shots . | . . . . . Overflow Damage 36 | . . 18 13 5 Projectiles 27 | . . 9 13 5 Explosions 9 | . . 9 . . Melee . | . . . . . Knockbacks 3 | . . . 1 2 Impact . | . . . . . Kinetic 2 | . . . 1 1 Secondary 1 | . . . . 1 Self-Inflicted Damage 92 | . . 92 . . Shots 3 | . . 3 . . Rammed 1 | . . . 1 . Targets Rammed 3 | . . . 3 . Kicked . | . . . . . Crushed 2 | . . . 2 . Highest Temperature 447 | . 54 275 229 447 Average Temperature 101 | . 23 75 59 182 Received Heat Transfer 1406 | . . 668 177 561 Effects 2 | . . . . 2 Energy Bleed 1 | . . . . 1 Matter Decay 1 | . . . . 1 Siege Activations . | . . . . . Martial Activations . | . . . . . Shielding Activations . | . . . . . Robots Disrupted . | . . . . . Combat Hostiles . | . . . . . Robots Corrupted . | . . . . . Combat Hostiles . | . . . . . Parts Fried . | . . . . . Impact Corruptions . | . . . . . Robots Melted . | . . . . . Combat Hostiles . | . . . . . Parts Melted 6 | . 1 4 . 1 Heat Transferred 4060 | . 111 2164 1008 777 Parts Sabotaged . | . . . . . Parts Stolen . | . . . . . Parts Stripped . | . . . . . Power Chain Reactions . | . . . . . Alert | -11 -10 -9 -8 -8 ------- Run | Yrd Mat Mat Mat Sto Maximum Alert Level . | . . . . . Low Security (%) 100 | 100 100 100 100 100 Level 1 . | . . . . . Level 2 . | . . . . . Level 3 . | . . . . . Level 4 . | . . . . . Level 5 . | . . . . . High Security . | . . . . . Max Security . | . . . . . Peak Influence 172 | 15 115 172 77 100 Initial 25 | . . . . 25 Average 26 | 1 32 35 14 25 Influence Increases 1400 | 20 145 646 329 260 Destroy 0b10 Robot/C 820 | . 60 420 180 160 Destroy 0b10 Robot/NC 105 | 20 . 55 25 5 Destroy Leader 202 | . 10 88 54 50 Successful Hack 77 | . 30 27 8 12 Disable Machine 30 | . . 15 . 15 Destroy Structure 46 | . . 41 2 3 Partial Spotted 15 | . . . . 15 Lose Combat Pursuer 105 | . 45 . 60 . Influence Decreases 1328 | 20 145 646 268 249 Entered New Map 36 | . . . . 36 Time Decay 810 | 20 145 288 204 153 Lost Part 294 | . . 170 64 60 Lost Ally 10 | . . 10 . . Purge Threat 178 | . . 178 . . Squads Dispatched 5 | . . 2 1 2 Investigation 1 | . . 1 . . Extermination . | . . . . . Reinforcement 4 | . . 1 1 2 Assault . | . . . . . Garrison . | . . . . . Intercept . | . . . . . Searches Triggered . | . . . . . Construction Impeded 1 | . . . . 1 Haulers Reinforced . | . . . . . Active Scanning Responses . | . . . . . Cargo Convoy Interrupts . | . . . . . Stealth | -11 -10 -9 -8 -8 --------- Run | Yrd Mat Mat Mat Sto Distress Signals 4 | . . 2 1 1 Communications Jammed . | . . . . . Distress Signals . | . . . . . Times Spotted 81 | . 7 31 28 15 Peak Tracking Total 8 | . 3 8 8 8 Tactical Retreats 3 | . 1 . 2 . Traps | -11 -10 -9 -8 -8 ------- Run | Yrd Mat Mat Mat Sto Traps Triggered 4 | . 1 1 . 2 Indirectly . | . . . . . Trap Hack Attempts . | . . . . . Triggered . | . . . . . Disarmed . | . . . . . Reprogrammed . | . . . . . Reused . | . . . . . Traps Extracted . | . . . . . Installed . | . . . . . Triggered . | . . . . . Machines | -11 -10 -9 -8 -8 ---------- Run | Yrd Mat Mat Mat Sto Machines Disabled 3 | . . 2 . 1 Max in Single Turn 1 | . . 1 . 1 Garrison Access 1 | . . . 1 . Machines Repaired . | . . . . . Machines Dismantled . | . . . . . Machines Sabotaged . | . . . . . Overloaded Fab Kills . | . . . . . Hacking | -11 -10 -9 -8 -8 --------- Run | Yrd Mat Mat Mat Sto Machines Accessed 14 | . 1 8 4 1 Terminals 13 | . 1 8 3 1 Fabricators . | . . . . . Repair Stations . | . . . . . Recycling Units . | . . . . . Scanalyzers . | . . . . . Garrison Access 1 | . . . 1 . Total Hacks 44 | . 2 27 13 2 Successful 23 | . 2 13 7 1 Failed 21 | . . 14 6 1 Catastrophic 1 | . . 1 . . Database Lockouts . | . . . . . Manual 43 | . 2 27 12 2 Terminals 43 | . 2 27 12 2 Fabricators . | . . . . . Repair Stations . | . . . . . Recycling Units . | . . . . . Scanalyzers . | . . . . . Garrison Access 1 | . . . 1 . Terminal Hacks 4 | . . 3 1 . Fabricator Index 1 | . . 1 . . Unreport Threat 3 | . . 2 1 . Fabricator Hacks . | . . . . . Repair Station Hacks . | . . . . . Recycling Unit Hacks . | . . . . . Scanalyzer . | . . . . . Garrison Access Hacks 1 | . . . 1 . Seal Access 1 | . . . 1 . Unauthorized Hacks 18 | . 2 10 5 1 Terminals 18 | . 2 10 5 1 Assimilate 6 | . 1 3 2 . Botnet 12 | . 1 7 3 1 Fabricators . | . . . . . Repair Stations . | . . . . . Recycling Units . | . . . . . Scanalyzers . | . . . . . Garrison Access . | . . . . . Data Cores Recovered . | . . . . . Used . | . . . . . Hacking Detections 9 | . 1 4 3 1 Full Trace Events . | . . . . . Feedback Events . | . . . . . Feedback Blocked . | . . . . . Robot Schematics Acquired . | . . . . . Robots Built . | . . . . . Authchips . | . . . . . Time . | . . . . . Total Robot Build Rating . | . . . . . Part Schematics Acquired . | . . . . . Parts Built . | . . . . . Authchips . | . . . . . Time . | . . . . . Total Part Build Rating . | . . . . . Part Studies Acquired . | . . . . . Parts Repaired . | . . . . . Time . | . . . . . Parts Recycled . | . . . . . Recycled Matter . | . . . . . Retrieved Matter . | . . . . . Retrieved Components . | . . . . . Parts Scanalyzed . | . . . . . Part Schematics Acquired . | . . . . . Parts Damaged . | . . . . . Bothacking | -11 -10 -9 -8 -8 ------------ Run | Yrd Mat Mat Mat Sto Used RIF Installer . | . . . . . Robots Hacked . | . . . . . Non-combat . | . . . . . Combat . | . . . . . Robot Hacks Applied . | . . . . . Relay Couplers Released . | . . . . . Fabnet Peak Effective % . | . . . . . Robots Rewired . | . . . . . Allies Hacked . | . . . . . Hacks Repelled . | . . . . . Allies | -11 -10 -9 -8 -8 -------- Run | Yrd Mat Mat Mat Sto Total Allies 1 | . . 1 . . Largest Group 1 | . . 1 . . Highest-Rated Group 10 | . . 10 . . Highest-Rated Ally 10 | . . 10 . . Total Orders . | . . . . . Ally Attacks . | . . . . . Total Damage . | . . . . . Kills . | . . . . . Allies Corrupted . | . . . . . Allies Melted . | . . . . . Intel | -11 -10 -9 -8 -8 ------- Run | Yrd Mat Mat Mat Sto Active Infowar (turns) 1212 | 44 434 734 . . Terrain 623 | . . 623 . . Seismic 1212 | 44 434 734 . . Robot Analysis Total . | . . . . . Derelict Logs Recovered . | . . . . . Drone Launches . | . . . . . Drone Recoveries . | . . . . . Exploration | -11 -10 -9 -8 -8 ------------- Run | Yrd Mat Mat Mat Sto Turns Passed 2822 | 125 434 1035 811 417 Spaces Moved 1310 | 63 250 473 333 191 Core 19 | 8 . 11 . . Treads 992 | 55 250 364 235 88 Legs . | . . . . . Wheels 196 | . . 98 98 . Hover 103 | . . . . 103 Flight . | . . . . . Fastest Speed 50 | 50 160 85 85 106 Average Speed 146 | 148 160 146 139 139 Slowest Speed 250 | 160 160 250 160 240 Overloaded Moves . | . . . . . Propulsion Burnouts . | . . . . . Robots Hopped . | . . . . . Potential Cave-ins . | . . . . . Cave-ins Triggered . | . . . . . Exploration Rate (%) 34 | 4 49 46 33 41 Regions Visited 4 Branch Regions 1 Pre-discovered Areas . | . . . . . Known Exits Taken 1 | . . . 1 . Unknown Exits Taken 3 | 1 1 1 . . Scrap Searched . | . . . . . Spaces Dug . | . . . . . Terrain Destroyed 43 | . . 39 1 3 Melee . | . . . . . Projectile 4 | . . . 1 3 AOE 39 | . . 39 . . Terrain Rammed . | . . . . . Walls Destroyed . | . . . . . Machines Disabled . | . . . . . Actions | -11 -10 -9 -8 -8 --------- Run | Yrd Mat Mat Mat Sto Total 1915 | 80 277 671 611 276 Wait 289 | . 6 73 193 17 Move 1306 | 62 249 472 332 191 Hop . | . . . . . Pick Up 42 | 5 8 9 11 9 Fast Attach 27 | 7 1 6 9 4 Attach 22 | . . 11 6 5 Detach 2 | . 1 . . 1 Swap 11 | . . 4 7 . Drop 21 | . 6 5 4 6 Fire 192 | 6 6 91 46 43 Melee . | . . . . . Ram . | . . . . . Kick . | . . . . . Crush 3 | . . . 3 . Escape Stasis . | . . . . . Rewire . | . . . . . Trap . | . . . . . Miscellaneous . | . . . . . Route ------- -11/Scrapyard -10/Materials (discovered 2 exits: *Mat / [*Min]) -9/Materials (discovered 2 exits: *Mat / [*Min]) -8/Materials -8/Storage History --------- Turn | Location | Event 13 | -11/Scrapyard | Discovered new exit (range 15) 126 | -11/Scrapyard | Entered Materials 303 | -10/Materials | Build established: Mutant 410 | -10/Materials | Discovered new exit (range 10) 485 | -10/Materials | Discovered new exit (range 9) 560 | -10/Materials | Entered another Materials area 560 | -9/Materials | Evolved 2 slots: Utility x2 1053 | -9/Materials | Discovered new exit (range 11) 1308 | -9/Materials | Core integrity fell below 50% 1402 | -9/Materials | Lost 10 parts (1p3n4u2w) 1508 | -9/Materials | Lost 4 parts (1p2n1w) 1536 | -9/Materials | Discovered new exit (range 3) 1595 | -9/Materials | Entered another Materials area 1595 | -8/Materials | Evolved 2 slots: Utility x2 1821 | -8/Materials | Build established: Scavenger-Mutant 2088 | -8/Materials | Lost 5 parts (1p2u2w) 2310 | -8/Materials | Discovered new exit (range 15) 2379 | -8/Materials | Core integrity fell below 50% 2405 | -8/Materials | Identified exit to Storage 2406 | -8/Materials | Entered Storage 2781 | -8/Storage | Core integrity fell below 20% 2823 | -8/Storage | Destroyed by Y-45 Defender with Beam Rifle Last Messages --------------- 02778_ K-01 Serf collects debris. 02782_ Acquired 49 matter. 02782_ Critical hit (Burn: +37). 02783_ K-01 Serf collects debris. 02789_ Ion Cannon destroyed. 02792_ M-13 Machinist fits Backup Plating I on G-47 Trooper. 02794_ M-13 Machinist repairs G-47 Trooper Particle Gun. 02795_ Y-45 Defender destroyed. 02799_ Particle Gun melted. 02799_ G-47 Trooper destroyed. 02799_ Aerolev Unit destroyed. 02804_ K-01 Serf collects debris. 02805_ Acquired Lgt. Nuclear Core. 02809_ K-01 Serf collects debris. 02814_ Hvy. Assault Rifle destroyed. 02814_ Critical hit (Burn: +37). 02814_ Aerolev Unit destroyed. 02818_ K-01 Serf collects debris. Map ----- +----------------------------------------------------+ | ?????????????????????????????????????????????????? | | ?????????????????????????????????????????????????? | | ?????????????????????????????????????????????????? | | ?????????????????????????????????????????????????? | | ?????????????????????????????????????????????????? | | ?????????????????????????????????????????????????? | | ?????????????????????????????????????????????????? | | ?????????????????????????????????????????????????? | | ?????????????????????????????????????????????????? | | ????????????????????????###############??????????? | | ????????????????????????# #??????????? | | ????????????????????????# #??????????? | | ????????????????????????# #??????????? | | ????????????????????????# #??????????? | | ????????????????????????# #??????##### | | ????????????????????????# #??????# | | ????????????????????????##########+##+#??????# | | ???????????????????#########%#??# #??????# | | ???????????????????# """"" !#??# #??????#"" | | ???????????????????# """"" #??# #??????#"" | | ???????????????????# """"" #??# #??????#"T | | ???????????????????# k #??# #??????#"" | | ???????????????????# #??# ##+########"" | | ???????????????????# #??# # # | | ???????????????????# ! u #??# #%/ #+### | | ???????????????????# =@ #### # # | | ?????????????????#######Y##### ## # + | | ??????????? "T"=m # = # | | ??????????? %%% + ! ##### | | ??????????? % "" # ! #???? | | ???????????####### "" # = #???? | | ?????????????????# ^ ! ^ "" ###########???? | | ????????????????## =% #?????????????? | | ????????????????## * #?????????????? | | ?????????????????# ""% """ """ + ????????????? | | ?????????????????# """ """ """ # ????????????? | | ?????????????????# """ """ """ #? ???????????? | | ?????????????????# #?? ??????????? | | ?????????????????#?? ? +?????????????? | | ????????????????????#####?######?###??????????#### | | ?????????????????????# ???????????????????????# | | ?????????????????????# ???????????????????????# | | ??????????????????????????????????????????????# "" | | ??????????????????????????????????????????????# "" | | ??????????????????????????????????????????????# "" | | ??????????????????????????????????????????????# "" | | ??????????????????????????????????????????????# "" | | ??????????????????????????????????????????????# | | ??????????????????????????????????????????????#### | | ??????????????????????????????????????????????#### | +----------------------------------------------------+ Best States ------------- Heat Dissipation 41 Energy Generation 14 Energy Capacity 265 Matter Stores 300 Matter Capacity 300 Sight Range 16 Terrain Scan Range 16 Terrain Scan Density 10 Armor Coverage 225 Evasion (%) 43 Targeting Accuracy 10 Recoil Reduction 2 Offensive Hacking 10 Defensive Hacking 10 Item Schematics ----------------- None Robot Schematics ------------------ None Fabricated ------------ Nothing Repaired ---------- Nothing Studied --------- None Alien Tech Used ----------------- None Achievements -------------- None Challenges ------------ None Game ------ Seed TargetSigixWall Manual? 0 Play Time 00:23:30 Cumulative 66.4 hours Start 2026.03.14 @ 13:51:15 End 2026.03.14 @ 14:14:36 Sessions 1 Manual Loads 0 Difficulty Rogue Special Mode None Game No. 153 Rogue 153 Adventurer 0 Explorer 0 Win Type - Total 0 Types 0/0/0/0/0/0/0/0/0/0 Lore% 38 Gallery% 43 Achievement% 34 Wizard Run 0 Options --------- Layout 2 ASCII 0 Keyboard 1 Movement Arrows Keybinds 0 Fullscreen 1 Font 24/Smallcaps Map View 50x44 Zoom Use 0% Tactical HUD 1 Map Filters NONE Filters NONE Steam 1 RUN: 8fd3ed01-1d42-403f-9bc5-34384b64b524